Cogmind - Beta 11.1 @@@ ROGUE MODE // 2022.05.21 @ 22:20:19 Player: RX86 Result: Self-destructed Performance ------------- Evolutions (3) 1500 Regions Visited (8) 1600 Robots Destroyed (116) 580 Value Destroyed (3678) 3678 Prototype IDs (27) 540 Alien Tech Used (0) 0 Bonus (1615) 1615 TOTAL SCORE: 9513 Bonus ------- High Alert Combat Kills 341 Follower Combat Kills 274 Entered Garrisons 200 Used RIF Installer 500 Aligned with FarCom 300 Cogmind --------- Core Integrity 639/700 Matter 10/300 Energy 100/100 System Corruption 4% Temperature Cool (0) Movement Core (400) Ox7 Location -7/Factory Parts ------- > --- POWER (1) -------- (None) > --- PROPULSION (4) --- (None) > --- UTILITY (6) ------ Cryofiber Web Large Storage Unit Experimental Targeting Computer Hacking Suite Recalibrator > --- WEAPON (2) ------- (None) > --- INVENTORY (15) --- Trap Scanner Advanced ECM Suite Relay Coupler [NC] (31) Relay Coupler [Sentry] (22) Relay Coupler [Sentry] (22) Relay Coupler [Hunter] (17) Relay Coupler [Behemoth] (11) Relay Coupler [Behemoth] (9) System Restoration Module Arc Projector Gauss Rifle Rocket Launcher Improved Datajack Improved Datajack Katana Peak State ------------ > --- POWER ------------ Cooled Ion Engine > --- PROPULSION ------- Flying Fortress v7 > --- UTILITY ---------- Cryofiber Web Large Storage Unit Experimental Targeting Computer Hacking Suite Relay Coupler [NC] Recalibrator > --- WEAPON ----------- Arc Projector Flak Cannon > --- INVENTORY -------- Cooled Ion Engine Titanium Leg Trap Scanner Medium Reactive Plating Relay Coupler [NC] Relay Coupler [Sentry] Relay Coupler [Sentry] Relay Coupler [Hunter] Relay Coupler [Behemoth] Relay Coupler [Behemoth] Gauss Rifle Rocket Launcher Improved Datajack Improved Datajack Hammer [Rating: 65] Favorites ----------- Power Cooled Ion Engine Engine Cooled Ion Engine Propulsion Carbon-fiber Leg Treads Light Treads Leg Carbon-fiber Leg Hover Unit Hover Unit Flight Unit Flying Fortress v7 Utility Hacking Suite Device Recalibrator Storage Large Storage Unit Processor Experimental Targeting Computer Hackware Hacking Suite Protection Layered Light Armor Plating Weapon Improved EM Pulse Cannon Energy Gun Arc Projector Energy Cannon Improved EM Pulse Cannon Ballistic Gun Assault Rifle Ballistic Cannon Flak Cannon Launcher Rocket Launcher Special Weapon Plasma Flamer Impact Weapon Hammer Slashing Weapon Blade Saw Special Melee Weapon Improved Datajack Build | -11 -10 -10 -10 -9 -8 -8 -8 -7 ------- Run | Scr Mat Min Exi Min Mat Sto Gar Fac Slots Evolved 6 | . . . . . 4 . . 2 Power . | . . . . . . . . . Propulsion 2 | . . . . . 2 . . . Utility 4 | . . . . . 2 . . 2 Weapon . | . . . . . . . . . Parts Attached 221 | 6 20 18 1 . 95 43 32 6 Power 11 | 1 1 2 . . 3 2 1 1 Engine 11 | 1 1 2 . . 3 2 1 1 Core . | . . . . . . . . . Reactor . | . . . . . . . . . Propulsion 76 | 2 12 11 . . 39 11 1 . Treads 12 | . 6 4 . . . 2 . . Leg 34 | 2 . . . . 25 7 . . Wheel . | . . . . . . . . . Hover 20 | . 6 7 . . 7 . . . Flight 10 | . . . . . 7 2 1 . Utility 59 | 1 3 1 1 . 22 20 9 2 Device 32 | . 2 . . . 10 15 4 1 Storage 3 | 1 . . 1 . 1 . . . Processor 3 | . 1 . . . 1 1 . . Hackware 4 | . . . . . 2 1 . 1 Protection 17 | . . 1 . . 8 3 5 . Artifact . | . . . . . . . . . Weapon 75 | 2 4 4 . . 31 10 21 3 Energy Gun 11 | 1 . . . . 4 3 2 1 Energy Cannon 15 | . . . . . 10 2 3 . Ballistic Gun 20 | 1 4 4 . . 5 1 5 . Ballistic Cannon 11 | . . . . . 6 1 3 1 Launcher 9 | . . . . . 1 1 7 . Special Weapon 4 | . . . . . 4 . . . Impact Weapon 1 | . . . . . . . 1 . Slashing Weapon 3 | . . . . . 1 2 . . Piercing Weapon . | . . . . . . . . . Special Melee Weapon 1 | . . . . . . . . 1 Unidentified Prototypes 4 | . . . . . 3 1 . . Parts Lost 19 | . . . . . 3 8 4 4 Power 2 | . . . . . . . . 2 Propulsion 8 | . . . . . 2 5 . 1 Utility 4 | . . . . . . 1 2 1 Weapon 5 | . . . . . 1 2 2 . Highest Loss Streak 6 | . . . . . 2 6 2 2 To Critical Strikes . | . . . . . . . . . Average Slot Usage (%) 89 | . 95 99 90 85 91 91 84 66 Engine 9 | . 14 14 14 14 9 9 9 2 Leg 16 | . 4 . . . 20 26 17 . Hover 6 | . 17 17 28 28 5 . . . Flight 2 | . . . . . 2 2 4 7 Device 6 | . 7 12 . . 4 7 5 14 Storage 9 | . 14 14 14 14 9 9 9 7 Processor 3 | . 5 . . . . 9 9 7 Hackware 11 | . . . . . 17 6 9 14 Protection 3 | . . 1 14 14 4 4 2 . Energy Gun 2 | . 9 . . . . 7 . 2 Energy Cannon 4 | . . . . . 6 7 2 . Ballistic Gun 5 | . 15 27 19 14 3 1 3 . Ballistic Cannon 1 | . . . . . 2 . 1 2 Launcher 1 | . . . . . . . 7 2 Special Weapon 1 | . . . . . 3 . . . Naked Turns . | . . . . . . . . . Heaviest Build 56 | 12 16 16 18 18 56 46 44 36 Greatest Support 60 | 20 40 40 18 18 60 58 53 50 Greatest Overweight (x) 3 | 2 1 . . . 1 3 . . Average Overweight (x) . | . . . . . . . . . Largest Inventory Capacity 15 | 8 8 8 10 10 15 15 15 15 Average Capacity 13 | 7 8 8 9 10 13 15 15 15 Most Carried 15 | 6 8 8 10 10 15 15 15 15 Average Carried 12 | 3 6 7 8 9 11 14 14 14 Final Capacity 15 | 8 8 8 10 10 15 15 15 15 Final Carried 15 | 4 8 8 10 10 15 14 15 15 Class Distribution -------------------- 49% | Mutant 37% | Hacker-Mutant 6% | Bothacker-Mutant 6% | Scavenger-Mutant Dominant Class ---------------- Mutant | -10/Materials Mutant | -10/Mines Mutant | -10/Exiles Mutant | -9/Mines Hacker-Mutant | -8/Materials Mutant | -8/Storage Mutant | -8/Garrison Bothacker-Mutant | -7/Factory Resources | -11 -10 -10 -10 -9 -8 -8 -8 -7 ----------- Run | Scr Mat Min Exi Min Mat Sto Gar Fac Matter Collected 3201 | 237 300 484 . 10 1079 452 633 6 Remotely . | . . . . . . . . . Salvage Created 3539 | . 357 401 . . 1278 950 553 . Parts 224 | . 18 34 . . 86 50 36 . Haulers Intercepted 9 | . 1 . . . 5 3 . . Recyclers Shooed 5 | . . 1 . . 2 2 . . Parts Field Recycled . | . . . . . . . . . Retrieved Matter . | . . . . . . . . . Parts Self-Destructed . | . . . . . . . . . Prevented . | . . . . . . . . . Kills | -11 -10 -10 -10 -9 -8 -8 -8 -7 ------- Run | Scr Mat Min Exi Min Mat Sto Gar Fac Combat Hostiles Destroyed 84 | . 5 15 . . 26 14 24 . Melee 2 | . . . . . . 1 1 . Guns 33 | . 5 15 . . 5 6 2 . Cannons 27 | . . . . . 19 3 5 . AOE 19 | . . . . . . 4 15 . Classes Destroyed 12 | . 4 2 . . 6 . . . Worker 4 | . . . . . 2 2 . . Builder 2 | . . . . . 1 1 . . Tunneler 3 | . . 1 . . 2 . . . Hauler 9 | . 1 . . . 5 3 . . Recycler 4 | . 1 1 . . 1 1 . . Operator 3 | . . . . . 2 1 . . Watcher 7 | . 2 . . . 4 1 . . Swarmer 34 | . . 12 . . 8 4 10 . Cutter 3 | . . . . . 3 . . . Grunt 40 | . 5 3 . . 13 6 13 . Duelist 1 | . . . . . 1 . . . Sentry 6 | . . . . . 1 4 1 . Best Kill Streak 6 | . 3 5 . . 4 5 6 . Combat Bots Only 6 | . 2 5 . . 4 4 6 . Max Kills in Single Turn 3 | . 1 2 . . 2 3 3 . Gunslinging 1 | . . 1 . . . . . . Exploded 3 | . . . . . . 3 3 . Melee 1 | . . . . . . 1 1 . Uniques/NPCs Destroyed . | . . . . . . . . . Combat | -11 -10 -10 -10 -9 -8 -8 -8 -7 -------- Run | Scr Mat Min Exi Min Mat Sto Gar Fac Damage Taken 4226 | . 269 397 . . 1039 1073 706 742 Core 575 | . 65 69 . . 179 139 62 61 Absorbed by Shields 258 | . 93 165 . . . . . . Core Remaining (%) 58 | 100 . . . 46 . . 30 . Volleys Fired 392 | . 36 38 . 4 133 91 77 13 Largest 2 | . 2 2 . 1 2 2 2 1 Hottest 169 | . 70 43 . 20 169 124 92 55 Shots Fired 566 | . 71 76 . 4 191 125 86 13 Gun 350 | . 71 76 . 4 50 104 37 8 Cannon 133 | . . . . . 90 19 19 5 Launcher 32 | . . . . . . 2 30 . Special 51 | . . . . . 51 . . . Kinetic 239 | . 51 76 . 4 58 1 44 5 Thermal 73 | . 20 . . . 51 . 2 . Explosive 32 | . . . . . . 2 30 . Electromagnetic 222 | . . . . . 82 122 10 8 Robot Hit Streak 13 | . 6 11 . 4 9 8 13 8 Robot Miss Streak 7 | . 4 4 . 2 7 4 4 3 Penetration Max . | . . . . . . . . . Secondary Targets 4 | . . 3 . . . 1 . . Max Gunslinging Chain 1 | . . 1 . . . 1 . . Shots Hit Robots 374 | . 43 49 . 2 132 89 43 16 Core Hits 203 | . 17 19 . . 80 40 41 6 Critical Kills . | . . . . . . . . . Critical Parts Destroyed 2 | . . . . . . . 2 . Critical Strikes 14 | . 2 . . . 7 3 2 . Burn 8 | . 2 . . . 6 . . . Corrupt 3 | . . . . . 1 2 . . Smash 2 | . . . . . . . 2 . Sever 1 | . . . . . . 1 . . Melee Attacks 88 | . . . . . 51 15 19 3 Impact 19 | . . . . . . . 19 . Slashing 66 | . . . . . 51 15 . . Piercing . | . . . . . . . . . Sneak Attacks 5 | . . . . . . 2 . 3 Combat Hostiles . | . . . . . . . . . Follow-up Attacks . | . . . . . . . . . Damage Inflicted 7756 | . 588 590 . 28 2473 1716 2271 90 Guns 2829 | . 588 590 . 28 553 787 265 18 Cannons 2225 | . . . . . 1398 357 398 72 Explosions 1878 | . . . . . 84 341 1453 . Melee 386 | . . . . . . 231 155 . Ramming 9 | . . . . . 9 . . . Kinetic 2258 | . 476 590 . 28 687 . 405 72 Thermal 652 | . 112 . . . 429 52 59 . Explosive 1784 | . . . . . 84 289 1411 . Electromagnetic 2667 | . . . . . 1264 1144 241 18 Impact 155 | . . . . . . . 155 . Slashing 231 | . . . . . . 231 . . Piercing . | . . . . . . . . . Highest Corruption 4 | . . . . . 1 1 1 4 Average Corruption 1 | . . . . . 1 1 1 2 Corruption Purged . | . . . . . . . . . Corruption Blocked . | . . . . . . . . . Effects 44 | . . . . . 8 14 14 8 Message Errors 11 | . . . . . . 6 4 1 Matter Fused 12 | . . . . . 3 4 4 1 Heat Flow Errors 7 | . . . . . 1 2 2 2 Energy Discharges 4 | . . . . . . . 2 2 Data Loss (minor) 5 | . . . . . 3 . . 2 Data Loss (major) 2 | . . . . . . 1 1 . Misfires 1 | . . . . . 1 . . . Alerts 1 | . . . . . . . 1 . Weapon Failures 1 | . . . . . . 1 . . Overload Shots . | . . . . . . . . . Overflow Damage 179 | . . . . . 17 15 147 . Projectiles 17 | . . . . . 17 . . . Explosions 73 | . . . . . . 8 65 . Melee 89 | . . . . . . 7 82 . Knockbacks 24 | . . . . . 17 . 3 4 Impact 1 | . . . . . . . 1 . Kinetic 20 | . . . . . 14 . 2 4 Secondary 3 | . . . . . 3 . . . Self-Inflicted Damage 255 | . . . . . 9 81 165 . Shots 6 | . . . . . . 2 4 . Rammed . | . . . . . . . . . Targets Rammed . | . . . . . . . . . Kicked . | . . . . . . . . . Crushed . | . . . . . . . . . Highest Temperature 356 | . 30 4 . . 334 356 256 147 Average Temperature 77 | . 9 4 . . 90 85 52 42 Received Heat Transfer 1538 | . 166 40 . . 468 468 252 144 Effects 1 | . . . . . . 1 . . Shutdowns 1 | . . . . . . 1 . . Siege Activations . | . . . . . . . . . Robots Corrupted 1 | . . . . . 1 . . . Combat Hostiles 1 | . . . . . 1 . . . Parts Fried 22 | . . . . . 12 9 1 . Impact Corruptions 3 | . . . . . . . 3 . Robots Melted 1 | . . . . . 1 . . . Combat Hostiles 1 | . . . . . 1 . . . Parts Melted 5 | . 1 . . . 4 . . . Heat Transferred 4218 | . 481 . . . 3600 50 87 . Parts Sabotaged . | . . . . . . . . . Parts Stolen . | . . . . . . . . . Parts Stripped . | . . . . . . . . . Power Chain Reactions 2 | . . . . . . 1 1 . Missiles Intercepted . | . . . . . . . . . Alert | -11 -10 -10 -10 -9 -8 -8 -8 -7 ------- Run | Scr Mat Min Exi Min Mat Sto Gar Fac Peak Influence 1513 | . 125 382 . . 351 361 1513 809 Initial 793 | . . 22 . . . 74 225 793 Average 287 | . 59 236 . . 170 153 835 695 Maximum Alert Level 4 | . . 1 . . 1 1 4 3 Low Security (%) 53 | 100 100 20 . 100 61 82 . . Level 1 30 | . . 79 . . 38 17 36 . Level 2 5 | . . . . . . . 12 47 Level 3 6 | . . . . . . . 19 52 Level 4 4 | . . . . . . . 32 . Level 5 . | . . . . . . . . . High Security . | . . . . . . . . . Max Security . | . . . . . . . . . Squads Dispatched 15 | . 1 . . . 5 5 . 4 Investigation 5 | . . . . . 2 3 . . Extermination 2 | . . . . . . . . 2 Reinforcement 7 | . 1 . . . 3 2 . 1 Assault 1 | . . . . . . . . 1 Garrison . | . . . . . . . . . Intercept . | . . . . . . . . . Searches Triggered . | . . . . . . . . . Construction Impeded 1 | . . . . . . 1 . . Haulers Reinforced . | . . . . . . . . . Active Scanning Responses . | . . . . . . . . . Cargo Convoy Interrupts . | . . . . . . . . . Stealth | -11 -10 -10 -10 -9 -8 -8 -8 -7 --------- Run | Scr Mat Min Exi Min Mat Sto Gar Fac Distress Signals 6 | . . 1 . . 4 1 . . Communications Jammed . | . . . . . . . . . Distress Signals . | . . . . . . . . . Times Spotted 140 | . 12 17 . . 37 34 18 22 Peak Tracking Total 8 | . 2 3 . . 5 4 5 8 Tactical Retreats 24 | . . 2 . . 5 8 3 6 Traps | -11 -10 -10 -10 -9 -8 -8 -8 -7 ------- Run | Scr Mat Min Exi Min Mat Sto Gar Fac Traps Triggered 11 | . . . . . 1 4 5 1 Indirectly . | . . . . . . . . . Trap Hack Attempts . | . . . . . . . . . Triggered . | . . . . . . . . . Disarmed . | . . . . . . . . . Reprogrammed . | . . . . . . . . . Reused . | . . . . . . . . . Traps Extracted . | . . . . . . . . . Installed . | . . . . . . . . . Triggered . | . . . . . . . . . Machines | -11 -10 -10 -10 -9 -8 -8 -8 -7 ---------- Run | Scr Mat Min Exi Min Mat Sto Gar Fac Machines Disabled 12 | . 1 . . . 2 1 8 . Max in Single Turn 2 | . 1 . . . 1 1 2 . Garrison Relay 3 | . . . . . . . 3 . Phase Generator 1 | . . . . . . . 1 . Machines Sabotaged . | . . . . . . . . . Garrisons Compromised . | . . . . . . . . . Overloaded Fab Kills . | . . . . . . . . . Hacking | -11 -10 -10 -10 -9 -8 -8 -8 -7 --------- Run | Scr Mat Min Exi Min Mat Sto Gar Fac Machines Accessed 43 | . 8 . 2 . 10 12 . 11 Terminals 32 | . 7 . . . 7 9 . 9 Fabricators . | . . . . . . . . . Repair Stations 2 | . 1 . . . . . . 1 Recycling Units 5 | . . . . . 2 2 . 1 Scanalyzers 1 | . . . . . 1 . . . Garrison Access 1 | . . . . . . 1 . . Total Hacks 110 | . 22 . 2 . 39 27 . 20 Successful 73 | . 12 . 2 . 30 17 . 12 Failed 37 | . 10 . . . 9 10 . 8 Catastrophic 7 | . 4 . . . 2 1 . . Database Lockouts . | . . . . . . . . . Manual 93 | . 22 . 1 . 29 23 . 18 Terminals 86 | . 21 . . . 29 20 . 16 Fabricators . | . . . . . . . . . Repair Stations 2 | . 1 . . . . . . 1 Recycling Units 13 | . . . . . 6 4 . 3 Scanalyzers 4 | . . . . . 4 . . . Garrison Access 3 | . . . . . . 3 . . Terminal Hacks 24 | . 6 . 2 . 9 4 . 3 Record 2 | . . . 1 . 1 . . . Open Door 2 | . . . . . . 2 . . Open DSF 1 | . . . . . . . . 1 Level Access Points 2 | . . . . . 1 1 . . Branch Access Points 1 | . 1 . . . . . . . Terminal Index 3 | . 1 . . . 1 1 . . Recycling Unit Index 1 | . . . . . . . . 1 Alert Level 1 | . . . . . 1 . . . Unreport Threat 7 | . 3 . . . 3 . . 1 Recall Investigation 1 | . 1 . . . . . . . Zone Layout 2 | . . . . . 2 . . . EX-Prototype ID Bank 1 | . . . 1 . . . . . Fabricator Hacks . | . . . . . . . . . Repair Station Hacks . | . . . . . . . . . Recycling Unit Hacks 2 | . . . . . 2 . . . Process 1 | . . . . . 1 . . . Retrieve Matter 1 | . . . . . 1 . . . Scanalyzer 4 | . . . . . 4 . . . Insert Component 2 | . . . . . 2 . . . Analyze 2 | . . . . . 2 . . . Garrison Access Hacks 1 | . . . . . . 1 . . Unlock Access 1 | . . . . . . 1 . . Unauthorized Hacks 41 | . 6 . . . 14 12 . 9 Terminals 31 | . 5 . . . 11 7 . 8 Track 7 | . . . . . 4 1 . 2 Assimilate 6 | . 1 . . . 2 1 . 2 Botnet 15 | . 3 . . . 4 4 . 4 Operators 3 | . 1 . . . 1 1 . . Fabricators . | . . . . . . . . . Repair Stations 2 | . 1 . . . . . . 1 Mechanics 2 | . 1 . . . . . . 1 Recycling Units 6 | . . . . . 3 3 . . Monitor 3 | . . . . . 1 2 . . Recyclers 2 | . . . . . 1 1 . . Mask 1 | . . . . . 1 . . . Scanalyzers . | . . . . . . . . . Garrison Access 2 | . . . . . . 2 . . Reprogram 1 | . . . . . . 1 . . Eject 1 | . . . . . . 1 . . Data Cores Recovered . | . . . . . . . . . Used . | . . . . . . . . . Hacking Detections 33 | . 7 . . . 8 8 . 10 Full Trace Events 4 | . 2 . . . 1 1 . . Feedback Events . | . . . . . . . . . Feedback Blocked . | . . . . . . . . . Robot Schematics Acquired . | . . . . . . . . . Robots Built . | . . . . . . . . . Authchips . | . . . . . . . . . Time . | . . . . . . . . . Total Robot Build Rating . | . . . . . . . . . Part Schematics Acquired . | . . . . . . . . . Parts Built . | . . . . . . . . . Authchips . | . . . . . . . . . Time . | . . . . . . . . . Total Part Build Rating . | . . . . . . . . . Parts Repaired . | . . . . . . . . . Time . | . . . . . . . . . Parts Recycled . | . . . . . . . . . Recycled Matter 253 | . . . . . 253 . . . Retrieved Matter 376 | . . . . . 376 . . . Retrieved Components . | . . . . . . . . . Parts Scanalyzed 2 | . . . . . 2 . . . Part Schematics Acquired . | . . . . . . . . . Parts Damaged . | . . . . . . . . . Bothacking | -11 -10 -10 -10 -9 -8 -8 -8 -7 ------------ Run | Scr Mat Min Exi Min Mat Sto Gar Fac Used RIF Installer 1 | . . . . . . . 1 . Robots Hacked 1 | . . . . . . . . 1 Non-combat 1 | . . . . . . . . 1 Combat . | . . . . . . . . . Robot Hacks Applied 2 | . . . . . . . . 2 no_distress 1 | . . . . . . . . 1 find_fabricator 1 | . . . . . . . . 1 Relay Couplers Released 15 | . . . . . . 3 12 . Ejected 3 | . . . . . . 3 . . Machine Destruction 12 | . . . . . . . 12 . Attached 1 | . . . . . . . . 1 Fabnet Peak Effective % . | . . . . . . . . . Robots Rewired 2 | . . . . . . 2 . . Allies Hacked . | . . . . . . . . . Hacks Repelled . | . . . . . . . . . Allies | -11 -10 -10 -10 -9 -8 -8 -8 -7 -------- Run | Scr Mat Min Exi Min Mat Sto Gar Fac Total Allies 8 | . 1 1 . . 1 4 . 1 Largest Group 3 | . 1 1 1 . 1 3 2 2 Highest-Rated Group 136 | . 10 31 31 . 10 136 36 36 Highest-Rated Ally 100 | . 10 31 31 . 10 100 26 26 Total Orders 22 | . 2 . . . 4 3 11 2 STAY 10 | . 1 . . . 2 . 5 2 FOLLOW 10 | . 1 . . . 2 2 5 . GUARD 1 | . . . . . . 1 . . AID 1 | . . . . . . . 1 . Ally Attacks 25 | . . 2 . . . 23 . . Total Damage 609 | . . 42 . . . 567 . . Kills 9 | . . 1 . . . 8 . . Allies Corrupted . | . . . . . . . . . Allies Melted . | . . . . . . . . . Intel | -11 -10 -10 -10 -9 -8 -8 -8 -7 ------- Run | Scr Mat Min Exi Min Mat Sto Gar Fac Robot Analysis Total . | . . . . . . . . . Derelict Logs Recovered 3 | . . 1 . 2 . . . . Drone Launches . | . . . . . . . . . Drone Recoveries . | . . . . . . . . . Exploration | -11 -10 -10 -10 -9 -8 -8 -8 -7 ------------- Run | Scr Mat Min Exi Min Mat Sto Gar Fac Turns Passed 11828 | 65 506 720 351 330 5355 2132 1489 880 Spaces Moved 10501 | 43 493 694 516 481 3991 1253 1382 1648 Core 8 | 8 . . . . . . . . Treads 108 | . 15 92 . . . 1 . . Legs 2069 | 35 47 . . . 931 772 284 . Wheels . | . . . . . . . . . Hover 2987 | . 431 602 516 481 957 . . . Flight 5329 | . . . . . 2103 480 1098 1648 Fastest Speed 50 | 50 56 56 66 66 50 50 50 50 Average Speed 68 | 111 66 77 66 66 68 102 60 50 Slowest Speed 360 | 150 160 160 66 66 190 360 100 50 Overloaded Moves . | . . . . . . . . . Propulsion Burnouts . | . . . . . . . . . Robots Hopped 31 | . . . . . 14 5 . 12 Cave-ins Triggered . | . . . . . . . . . Exploration Rate (%) 72 | 5 69 96 91 87 79 90 89 42 Regions Visited 8 Branch Regions 4 Pre-discovered Areas 2 | . . 1 1 . . . . . Known Exits Taken 3 | . 1 . . 1 . 1 . . Unknown Exits Taken 4 | 1 . 1 1 . 1 . . . Scrap Searched 3 | . . 2 . 1 . . . . Spaces Dug 14 | . . . . . . . 14 . Terrain Destroyed 273 | . . . . . 14 22 237 . Melee . | . . . . . . . . . Projectile . | . . . . . . . . . AOE 273 | . . . . . 14 22 237 . Terrain Rammed 1 | . . . . . 1 . . . Walls Destroyed . | . . . . . . . . . Machines Disabled . | . . . . . . . . . Actions | -11 -10 -10 -10 -9 -8 -8 -8 -7 --------- Run | Scr Mat Min Exi Min Mat Sto Gar Fac Total 14307 | 58 593 796 529 490 6313 1929 1919 1680 Wait 2852 | 4 25 35 3 2 1915 505 356 7 Move 10431 | 42 492 693 515 480 3962 1243 1380 1624 Hop 31 | . . . . . 14 5 . 12 Pick Up 126 | 6 10 5 3 2 71 8 13 8 Fast Attach 23 | 4 2 . . . 6 8 2 1 Attach 68 | 2 2 2 . . 47 8 4 3 Detach 14 | . 2 1 1 . 6 2 1 1 Swap 130 | . 16 16 1 . 42 27 26 2 Drop 112 | . 8 6 6 2 65 9 10 6 Fire 392 | . 36 38 . 4 133 91 77 13 Melee 88 | . . . . . 51 15 19 3 Ram 1 | . . . . . 1 . . . Kick . | . . . . . . . . . Crush . | . . . . . . . . . Escape Stasis 36 | . . . . . . 5 31 . Rewire 3 | . . . . . . 3 . . Trap . | . . . . . . . . . Miscellaneous . | . . . . . . . . . Route ------- -11/Scrapyard -10/Materials (discovered 2 exits: [*Mat] / *Min) -10/Mines (discovered 3 exits: [*Mat x2] / *Exi) -10/Exiles -9/Mines (discovered 2 exits: *Mat x2) -8/Materials (discovered 5 exits: *Fac x3 / *Sto x2) -8/Storage (discovered 3 exits: *Fac / [*Rec] / Gar) -8/Garrison (discovered 3 exits: *Fac x3) -7/Factory (discovered 3 exits: [*Fac x2] / [*Low]) History --------- Turn | Location | Event 20 | -11/Scrapyard | Discovered new exit (range 16) 66 | -11/Scrapyard | Entered Materials 301 | -10/Materials | Identified exit to Mines 312 | -10/Materials | Build established: Mutant 495 | -10/Materials | Discovered new exit (range 14) 572 | -10/Materials | Entered Mines 572 | -10/Mines | Accompanied by 1 ally 817 | -10/Mines | Learned location of Mines (-9) 818 | -10/Mines | Assembled infested the area 855 | -10/Mines | Discovered new exit (range 9) 888 | -10/Mines | Core integrity fell below 50% 926 | -10/Mines | Discovered new exit (range 13) 981 | -10/Mines | Received a Mining Laser from a helpful Derelict 1267 | -10/Mines | Discovered new exit (range 5) 1292 | -10/Mines | Entered Exiles 1292 | -10/Exiles | Accompanied by 1 ally 1312 | -10/Exiles | Met 8R-AWN 1323 | -10/Exiles | Met EX-HEX 1343 | -10/Exiles | Met EX-BIN 1352 | -10/Exiles | Aligned with FarCom system 1353 | -10/Exiles | Given EX-Vault access code 1369 | -10/Exiles | Opened EX-Vault 1377 | -10/Exiles | Found Flying Fortress v7 1392 | -10/Exiles | Warned to stay clear of 0b10 Research branches 1434 | -10/Exiles | Met EX-DEC 1448 | -10/Exiles | Visited The Gauntlet 1529 | -10/Exiles | Learned location of Zion (-6) 1637 | -10/Exiles | Discovered new exit (range 10) 1643 | -10/Exiles | Left Exiles lab with Flying Fortress v7 1643 | -10/Exiles | Entered Mines 1673 | -9/Mines | Identified exit to Materials 1689 | -9/Mines | Met a Derelict bent on vengeance 1758 | -9/Mines | A weapon hastily lodged in a ceiling crevice suddenly fell to the ground 1828 | -9/Mines | Received a Rocket Launcher from a helpful Derelict 1973 | -9/Mines | Entered Materials 1973 | -8/Materials | Evolved 4 slots: Propulsion x2, Utility x2 2347 | -8/Materials | Build established: Scavenger-Mutant 2673 | -8/Materials | Discovered new exit (range 11) 3083 | -8/Materials | Build established: Hacker-Mutant 3354 | -8/Materials | Discovered new exit (range 3) 4698 | -8/Materials | Discovered new exit (range 13) 5081 | -8/Materials | Discovered new exit (range 13) 5097 | -8/Materials | Discovered new exit (range 11) 6761 | -8/Materials | Identified exit to Factory 7328 | -8/Materials | Entered Storage 7538 | -8/Storage | Build established: Mutant 7935 | -8/Storage | Found Prototype Processor 8561 | -8/Storage | Core integrity fell below 50% 8588 | -8/Storage | Lost 6 parts (4n1u1w) 9044 | -8/Storage | Discovered exit to Factory (range 16) 9051 | -8/Storage | Met 01-MTF 9156 | -8/Storage | Identified Exp. Targeting Computer 9267 | -8/Storage | Discovered new exit (range 8) 9459 | -8/Storage | Identified exit to Garrison 9460 | -8/Storage | Entered Garrison 9460 | -8/Garrison | Accompanied by 3 allies (01-MTF) 9465 | -8/Garrison | 01-MTF left 10028 | -8/Garrison | Triggered checkpoint 10048 | -8/Garrison | Garrison Relay disabled 10144 | -8/Garrison | Triggered checkpoint 10179 | -8/Garrison | Triggered checkpoint 10231 | -8/Garrison | Triggered checkpoint 10348 | -8/Garrison | Triggered checkpoint 10419 | -8/Garrison | Discovered exit to Factory (range 10) 10455 | -8/Garrison | Discovered exit to Factory (range 8) 10465 | -8/Garrison | Garrison Relay disabled 10482 | -8/Garrison | Triggered checkpoint 10516 | -8/Garrison | Triggered checkpoint 10561 | -8/Garrison | Garrison Relay disabled 10588 | -8/Garrison | Discovered exit to Factory (range 13) 10782 | -8/Garrison | Phase Generator disabled 10869 | -8/Garrison | Installed Relay Interface Framework 10949 | -8/Garrison | Entered Factory 10949 | -7/Factory | Accompanied by 1 ally 10949 | -7/Factory | Evolved 2 slots: Utility x2 11327 | -7/Factory | Build established: Bothacker-Mutant 11349 | -7/Factory | First assault squad dispatched 11422 | -7/Factory | Discovered new exit (range 14) 11527 | -7/Factory | Discovered new exit (range 9) 11718 | -7/Factory | Discovered new exit (range 8) 11829 | -7/Factory | Self-destructed Last Messages --------------- 11664_ Connecting with Terminal... >>Trojan(Botnet) Trojan loaded successfully. Testing... Terminal linked with 3 systems. Awaiting botnet instructions. 11672_ Technician 4a reveals location of Heavy Explosive Trap. 11694_ System corrupted: Heat flow error (+172). 11699_ ALERT: Rogue bot located, Programmers report to Factory Zone 4Z. 11718_ EXIT=FOUND 11736_ C-30 ARC bursts open, deploying its payload. 11736_ G-50 Soldier unfolds itself. 11736_ G-47 Trooper unfolds itself. 11736_ B-48 Gladiator unfolds itself. 11736_ L-41 Fighter unfolds itself. 11736_ M-28 Smith unfolds itself. 11739_ K-01 Serf collects debris. 11794_ Relay Coupler [NC] destroyed. 11806_ System corrupted: Energy discharge (-34). 11828_ Flying Fortress v7 destroyed. Map ----- +----------------------------------------------------+ | ???????????# #???????? #???????????????????????? | | ???????????# #???????? #???????????????????????? | | ?????#+#???# ####???## ####+##?????????????????? | | ?????# #???# #???# ?????????????????? | | ?????# #???# #???# ??????????????????? | | ?????# ##### #???# ???????????????????? | | ?????+ #???# ????????????????????? | | ?????# ##########???# ?????????????????????? | | ?????# #??########### p #??????????????????????? | | ?????# #??# # #??????????????????????? | | ?????# #??# # #??????????????????????? | | ?????# #??# # #??????????????????????? | | ?????# #??# # #??????????????????????? | | ?????# #??# + +??????????????????????? | | ?????# #??# # #??????????????????????? | | ?????# #??# # #??????????????????????? | | ?????# #??# # #??????????????????????? | | ?????# #####+######## #??????????????????????? | | ?????# g ########???????????????? | | ?????+ g #?????????????? | | ?????# ########g??????????????? | | ?????################ #??????????????????????? | | ????????????????????# #??????????????????????? | | ?????????????######## #??????????????????????? | | ?????????? #??????????????????????? | | ?????????? k @#??????????????????????? | | ?????????? #??????????????????????? | | ?????????? p #??????????????????????? | | ??????????? #??????????????????????? | | ???????????#### #### ##??????????????????????? | | ??????????????# ???# ????????????????????????? | | ??????????????# ????# ????????????????????????? | | ?????????????? ?????# ????????????????????????? | | ?????????????????????# ????????????????????????? | | ?????????????????????# ????????????????????????? | | ?????????????????????# ????????????????????????? | | ?????????????????????# ????????????????????????? | | ?????????????????????# ?????????????????????????? | | ?????????????????????# ?????????????????????????? | | ?????????????????????##+?????????????????????????? | | ?????????????????????????????????????????????????? | | ?????????????????????????????????????????????????? | | ?????????????????????????????????????????????????? | | ?????????????????????????????????????????????????? | | ?????????????????????????????????????????????????? | | ?????????????????????????????????????????????????? | | ?????????????????????????????????????????????????? | | ?????????????????????????????????????????????????? | | ?????????????????????????????????????????????????? | | ?????????????????????????????????????????????????? | +----------------------------------------------------+ Best States ------------- Heat Dissipation 45 Energy Generation 23 Energy Capacity 280 Matter Stores 300 Matter Capacity 300 Sight Range 18 Terrain Scan Density 10 Base Temperature (-) 100 Armor Coverage 225 Resistance: KI 30 Evasion (%) 68 Targeting Accuracy 12 Melee Accuracy 5 Recoil Reduction 2 Offensive Hacking 10 Defensive Hacking 10 Relay Coupler Types 1 Relay Coupler Value 24 Item Schematics ----------------- None Robot Schematics ------------------ None Fabricated ------------ Nothing Alien Tech Used ----------------- None Achievements -------------- None Challenges ------------ None Game ------ Seed GyrokineticMiningCanceller Manual? 0 Play Time 05:48:45 Cumulative 70.3 hours Start 2022.05.20 @ 23:23:54 End 2022.05.21 @ 22:20:19 Sessions 3 Manual Loads 0 Difficulty Rogue Special Mode None Game No. 43 Rogue 41 Adventurer 0 Explorer 2 Win Type - Total 0 Types 0/0/0/0/0/0/0/0/0 Lore% 24 Gallery% 30 Achievement% 25 Wizard Run 0 Options --------- ASCII 0 Keyboard 0 Movement Numpad Keybinds 0 Fullscreen 1 Font 18/SmallcapsGlow Map View 76x50 Tactical HUD 1 Map Filters NONE Filters NONE Steam 1 RUN: 3f177f08-5685-4be8-9490-122940f3c518